fUSD/lending_fUSD_20250208
["ID","MTS","AMOUNT","RATE_DAILY","PERIOD"]
[352274655,1739023851224,-1180.81,0.00010797,2]
[352274658,1739023851234,-1292.46,0.00010797,2]
[352274659,1739023851244,-500.0,0.00010797,2]
[352274661,1739023851254,-500.0,0.00010797,2]
[352274663,1739023851263,-847.37,0.00010797,2]
[352274665,1739023851273,-637.31,0.00010797,2]
[352274668,1739023851283,-993.73,0.00010797,2]
[352274669,1739023851293,-965.51,0.00010797,2]
[352274671,1739023851303,-1265.51,0.00010797,2]
[352274674,1739023851314,-685.27,0.00010797,2]
[352274676,1739023851324,-1060.04,0.00010797,2]
[352274678,1739023851334,-825.25,0.00010797,2]
[352274680,1739023851343,-500.0,0.00010797,2]
[352274682,1739023851353,-1441.66,0.00010797,2]
[352274684,1739023851363,-1594.71,0.00010797,2]
[352274686,1739023851373,-784.17,0.00010797,2]
[352274688,1739023851383,-1769.37,0.00010797,2]
[352274690,1739023851393,-706.98,0.00010797,2]
[352274692,1739023851404,-1108.01,0.00010797,2]
[352274694,1739023851414,-1301.9,0.00010797,2]
[352274696,1739023851426,-1580.45,0.00010797,2]
[352274698,1739023851436,-1456.02,0.00010797,2]
[352274700,1739023851446,-1211.69,0.00010797,2]
[352274702,1739023851456,-2026.89,0.00010797,2]
[352274704,1739023851466,-1201.71,0.00010797,2]
[352274706,1739023851476,-4134.11,0.00010797,2]
[352274708,1739023851486,-604.54,0.00010797,2]
[352274710,1739023851496,-2947.62,0.00010797,2]
[352274712,1739023851506,-698.33,0.00010797,2]
[352274714,1739023851516,-1062.08,0.00010797,2]
[352274716,1739023851526,-1752.27,0.00010797,2]
[352274718,1739023851536,-1933.44,0.00010797,2]
[352274721,1739023851547,-2042.65,0.00010797,2]
[352274723,1739023851556,-500.0,0.00010797,2]
[352274725,1739023851566,-1884.26,0.00010797,2]
[352274727,1739023851575,-1842.92,0.00010797,2]
[352274729,1739023851586,-897.59,0.00010797,2]
[352274731,1739023851596,-666.04,0.00010797,2]
[352274733,1739023851606,-726.03,0.00010797,2]
[352274735,1739023851615,-1474.19,0.00010797,2]
[352274737,1739023851625,-1030.2,0.00010797,2]
[352274739,1739023851635,-1867.38,0.00010797,2]
[352274741,1739023851644,-500.0,0.00010797,2]
[352274743,1739023851655,-713.51,0.00010797,2]
[352274745,1739023851665,-500.0,0.00010797,2]
[352274747,1739023851674,-1284.03,0.00010797,2]
[352274749,1739023851684,-500.0,0.00010797,2]
[352274751,1739023851694,-500.0,0.00010797,2]
[352274753,1739023851704,-918.65,0.00010797,2]
[352274755,1739023851714,-500.0,0.00010798,2]
[352274757,1739023851725,-516.51,0.00010798,2]
[352274759,1739023851735,-500.0,0.00010798,2]
[352274761,1739023851744,-500.0,0.00010798,2]
[352274763,1739023851754,-680.25,0.00010798,2]
[352274765,1739023851763,-500.0,0.00010798,2]
[352274767,1739023851773,-500.0,0.00010798,2]
[352274769,1739023851782,-500.0,0.00010798,2]
[352274771,1739023851792,-500.0,0.00010798,2]
[352274773,1739023851802,-500.0,0.00010798,2]
[352274775,1739023851812,-176.87770138,0.00010798,2]
[352274777,1739023851822,-733.93,0.00010798,2]
[352274779,1739023851832,-500.0,0.00010798,2]
[352274781,1739023851841,-500.0,0.00010798,2]
[352274783,1739023851851,-817.86,0.00010798,2]
[352274784,1739023851860,-500.0,0.00010798,2]
[352274786,1739023851870,-523.0,0.00010798,2]
[352274788,1739023851880,-192.2570519,0.00010798,2]
[352274791,1739023851890,-500.0,0.00010798,2]
[352274793,1739023851900,-500.0,0.00010798,2]
[352274795,1739023851911,-500.0,0.00010798,2]
[352274797,1739023851920,-500.0,0.00010798,2]
[352274799,1739023851931,-561.08,0.00010798,2]
[352274800,1739023851941,-500.0,0.00010798,2]
[352274802,1739023851951,-1265.044401,0.00010798,2]
[352274804,1739023851961,-677.1,0.00010798,2]
[352274806,1739023851970,-500.0,0.00010798,2]
[352274808,1739023851980,-1450.591688,0.00010798,2]
[352274810,1739023851989,-500.0,0.00010798,2]
[352274812,1739023851999,-824.34,0.00010798,2]
[352274814,1739023852009,-500.0,0.00010798,2]
[352274816,1739023852022,-500.0,0.00010798,2]
[352274818,1739023852032,-500.0,0.00010798,2]
[352274820,1739023852042,-508.80163868,0.00010798,2]
[352274822,1739023852051,-909.91,0.00010798,2]
[352274824,1739023852062,-500.0,0.00010798,2]
[352274826,1739023852072,-678.71,0.00010798,2]
[352274828,1739023852082,-500.0,0.00010798,2]
[352274830,1739023852092,-500.0,0.00010798,2]
[352274832,1739023852102,-500.0,0.00010798,2]
[352274834,1739023852112,-955.36,0.00010798,2]
[352274836,1739023852121,-500.0,0.00010798,2]
[352274838,1739023852131,-500.0,0.00010798,2]
[352274840,1739023852141,-695.67,0.00010798,2]
[352274842,1739023852151,-1086.86,0.00010798,2]
[352274844,1739023852161,-668.32,0.00010798,2]
[352274846,1739023852170,-500.0,0.00010798,2]
[352274848,1739023852180,-719.69,0.00010798,2]
[352274850,1739023852191,-500.0,0.00010798,2]
[352274852,1739023852201,-468.09293753,0.00010798,2]
[352274854,1739023852210,-719.23,0.00010798,2]
[352274856,1739023852220,-737.61,0.00010798,2]
[352274859,1739023852493,-687.09,0.00010798,2]
[352274860,1739023852505,-500.0,0.00010798,2]
[352274861,1739023852515,-500.0,0.00010798,2]
[352274862,1739023852524,-500.0,0.00010798,2]
[352274863,1739023852533,-732.83,0.00010798,2]
[352274864,1739023852543,-500.0,0.00010798,2]
[352274865,1739023852553,-562.43,0.00010798,2]
[352274866,1739023852562,-500.0,0.00010798,2]
[352274867,1739023852572,-500.0,0.00010798,2]
[352274868,1739023852581,-968.5,0.00010798,2]
[352274869,1739023852590,-500.0,0.00010798,2]
[352274870,1739023852599,-500.0,0.00010798,2]
[352274871,1739023852609,-248.43734092,0.00010798,2]
[352274872,1739023852872,-251.56265908,0.00010798,2]
[352274873,1739023852882,-500.0,0.00010798,2]
[352274874,1739023852892,-12.1226718,0.00010798,2]
[352274875,1739023853221,-500.0,0.00010387,2]
[352274876,1739023853231,-500.0,0.00010523,2]
[352274877,1739023853241,-500.0,0.00010524,2]
[352274878,1739023853250,-500.0,0.0001066,2]
[352274879,1739023853260,-500.0,0.00010661,2]
[352274880,1739023853270,-500.0,0.00010797,2]
[352274881,1739023853281,-957.1673282,0.00010798,2]
[352274882,1739023853291,-500.0,0.00010798,2]
[352274883,1739023853301,-674.57627574,0.00010798,2]
[352274884,1739023853313,-22.32372426,0.00010798,2]
[352274885,1739023853324,-1448.56177574,0.00010798,2]
[352274886,1739023853336,-1081.67822426,0.00010798,2]
[352274887,1739023853347,-916.32,0.00010798,2]
[352274888,1739023853356,-429.1797658,0.00010798,2]
[352274889,1739023853367,-437.16599374,0.00010798,2]
[352274890,1739023853378,-235.98400626,0.00010798,2]
[352274891,1739023853388,-500.0,0.00010798,2]
[352274892,1739023853398,-803.85,0.00010798,2]
[352274893,1739023853409,-500.0,0.00010798,2]
[352274894,1739023853419,-2270.88,0.00010798,2]
[352274895,1739023853429,-940.75,0.00010798,2]
[352274896,1739023853439,-1210.65,0.00010798,2]
[352274897,1739023853449,-1071.13,0.00010798,2]
[352274898,1739023853459,-1788.77,0.00010798,2]
[352274899,1739023853468,-651.16,0.00010798,2]
[352274900,1739023853478,-500.0,0.00010798,2]
[352274901,1739023853488,-500.0,0.00010798,2]
[352274902,1739023853498,-1401.73,0.00010798,2]
[352274903,1739023853507,-914.91,0.00010798,2]
[352274904,1739023853517,-1271.33,0.00010798,2]
[352274905,1739023853527,-500.0,0.00010798,2]
[352274906,1739023853537,-500.0,0.00010798,2]
[352274907,1739023853553,-745.42,0.00010798,2]
[352274908,1739023853563,-500.0,0.00010798,2]
[352274909,1739023853572,-500.0,0.00010798,2]
[352274910,1739023853582,-169.52160157,0.00010798,2]
[352274911,1739023853595,-330.47839843,0.00010798,2]
[352274912,1739023853605,-500.0,0.00010798,2]
[352274913,1739023853614,-500.0,0.00010798,2]
[352274914,1739023853624,-1536.22,0.00010798,2]
[352274915,1739023853634,-3676.97,0.00010798,2]
[352274916,1739023853643,-1074.62,0.00010798,2]
[352274917,1739023853652,-500.0,0.00010798,2]
[352274918,1739023853662,-614.64,0.00010798,2]
[352274919,1739023853672,-500.0,0.00010798,2]
[352274920,1739023853681,-1839.02,0.00010798,2]
[352274921,1739023853691,-546.71,0.00010798,2]
[352274922,1739023853700,-500.0,0.00010798,2]
[352274923,1739023853709,-830.52,0.00010798,2]
[352274924,1739023853719,-1019.97,0.00010798,2]
[352274925,1739023853730,-839.98,0.00010798,2]
[352274926,1739023853740,-500.0,0.00010798,2]
[352274927,1739023853750,-566.79,0.00010798,2]
[352274928,1739023853764,-2472.88,0.00010798,2]
[352274929,1739023853775,-500.0,0.00010798,2]
[352274930,1739023853785,-573.52,0.00010798,2]
[352274931,1739023853795,-704.64,0.00010798,2]
[352274932,1739023853805,-500.0,0.00010798,2]
[352274933,1739023853815,-5023.78,0.00010799,2]
[352274934,1739023853825,-1164.83,0.00010799,2]
[352274935,1739023853835,-500.0,0.00010799,2]
[352274936,1739023853845,-1152.12,0.00010799,2]
[352274937,1739023853855,-624.62,0.00010799,2]
[352274938,1739023853864,-928.66,0.00010799,2]
[352274939,1739023853874,-500.0,0.00010799,2]
[352274940,1739023853883,-500.0,0.00010799,2]
[352274941,1739023853893,-2030.84,0.00010799,2]
[352274942,1739023853903,-5823.63,0.00010799,2]
[352274943,1739023853912,-889.61,0.00010799,2]
[352274944,1739023853923,-1031.05,0.00010799,2]
[352274945,1739023853932,-915.82,0.00010799,2]
[352274946,1739023853942,-798.73,0.00010799,2]
[352274947,1739023853952,-1851.13,0.00010799,2]
[352274948,1739023853962,-500.0,0.00010799,2]
[352274949,1739023853971,-651.65,0.00010799,2]
[352274950,1739023853980,-1438.51,0.00010799,2]
[352274951,1739023853990,-1601.04,0.00010799,2]
[352274952,1739023854000,-1000.0,0.00010799,2]
[352274953,1739023854009,-948.02,0.00010799,2]
[352274954,1739023854022,-1640.87,0.00010799,2]
[352274955,1739023854032,-1818.24,0.00010799,2]
[352274956,1739023854042,-552.39,0.000108,2]
[352274957,1739023854051,-404.64029303,0.000108,2]
[352274958,1739023854060,-500.0,0.000108,2]
[352274959,1739023854070,-500.0,0.000108,2]
[352274960,1739023854078,-500.0,0.000108,2]
[352274961,1739023854087,-500.0,0.000108,2]
[352274962,1739023854097,-500.0,0.000108,2]
[352274963,1739023854106,-500.0,0.000108,2]
[352274964,1739023854115,-500.0,0.000108,2]
[352274965,1739023854124,-500.0,0.000108,2]
[352274966,1739023854133,-500.0,0.000108,2]
[352274967,1739023854142,-500.0,0.000108,2]
[352274968,1739023854150,-500.0,0.000108,2]
[352274969,1739023854159,-500.0,0.000108,2]
[352274970,1739023854168,-523.17,0.000108,2]
[352274971,1739023854177,-500.0,0.000108,2]
[352274972,1739023854188,-500.0,0.000108,2]
[352274973,1739023854200,-570.21,0.000108,2]
[352274974,1739023854209,-500.0,0.000108,2]
[352274975,1739023854219,-500.0,0.000108,2]
[352274976,1739023854228,-500.0,0.000108,2]
[352274977,1739023854237,-500.0,0.000108,2]
[352274978,1739023854246,-500.0,0.000108,2]
[352274979,1739023854256,-500.0,0.000108,2]
[352274980,1739023854265,-500.0,0.000108,2]
[352274981,1739023854274,-500.0,0.000108,2]
[352274982,1739023854284,-196.11428671,0.000108,2]
[352274983,1739023854293,-696.05,0.000108,2]
[352274984,1739023854302,-999.89,0.000108,2]
[352274985,1739023854311,-500.0,0.000108,2]
[352274986,1739023854321,-500.0,0.000108,2]
[352274987,1739023854330,-847.98,0.000108,2]
[352274988,1739023854340,-500.0,0.000108,2]
[352274989,1739023854349,-500.0,0.000108,2]
[352274990,1739023854359,-664.0,0.000108,2]
[352274991,1739023854368,-500.0,0.000108,2]
[352274992,1739023854378,-586.23,0.000108,2]
[352274993,1739023854388,-500.0,0.000108,2]
[352274994,1739023854398,-892.82,0.000108,2]
[352274995,1739023854407,-500.0,0.000108,2]
[352274996,1739023854417,-500.0,0.000108,2]
[352274997,1739023854426,-362.34939074,0.000108,2]
[352274998,1739023854435,-544.11,0.000108,2]
[352274999,1739023854445,-500.0,0.000108,2]
[352275000,1739023854455,-542.85127004,0.000108,2]
[352275001,1739023854464,-500.0,0.000108,2]
[352275002,1739023854474,-500.0,0.000108,2]
[352275003,1739023854483,-500.0,0.000108,2]
[352275004,1739023854493,-586.31607284,0.000108,2]
[352275005,1739023854502,-500.0,0.000108,2]
[352275006,1739023854511,-500.0,0.000108,2]
[352275007,1739023854521,-500.0,0.000108,2]
[352275008,1739023854530,-500.0,0.000108,2]
[352275009,1739023854539,-500.0,0.000108,2]
[352275010,1739023854549,-500.0,0.000108,2]
[352275011,1739023854559,-500.0,0.000108,2]
[352275012,1739023854568,-681.5,0.000108,2]
[352275013,1739023854577,-755.31,0.000108,2]
[352275014,1739023854586,-566.04,0.000108,2]
[352275015,1739023854595,-500.0,0.000108,2]
[352275016,1739023854604,-389.03464965,0.000108,2]
[352275017,1739023854614,-500.0,0.000108,2]
[352275018,1739023854623,-500.0,0.000108,2]
[352275019,1739023854632,-838.5,0.000108,2]
[352275020,1739023854642,-579.68,0.000108,2]
[352275021,1739023854652,-750.52,0.000108,2]
[352275022,1739023854661,-760.21,0.000108,2]
[352275023,1739023854673,-500.0,0.000108,2]
[352275024,1739023854682,-500.0,0.000108,2]
[352275025,1739023854692,-500.0,0.000108,2]
[352275026,1739023854701,-500.0,0.000108,2]
[352275027,1739023854711,-1255.98,0.000108,2]
[352275028,1739023854720,-500.0,0.000108,2]
[352275029,1739023854730,-500.0,0.000108,2]
[352275030,1739023854739,-500.0,0.000108,2]
[352275031,1739023854748,-873.02,0.000108,2]
[352275032,1739023854757,-500.0,0.000108,2]
[352275033,1739023854766,-500.0,0.000108,2]
[352275034,1739023854776,-833.17,0.000108,2]
[352275035,1739023854785,-500.0,0.000108,2]
[352275036,1739023854795,-553.10768206,0.000108,2]
[352275037,1739023854808,-275.67231794,0.000108,2]
[352275038,1739023854818,-1008.7,0.000108,2]
[352275039,1739023854828,-916.53,0.000108,2]
[352275040,1739023854838,-500.0,0.00010801,2]
[352275041,1739023854848,-143.88168222,0.00010801,2]
[352275042,1739023855131,-356.11831778,0.00010801,2]
[352275043,1739023855143,-509.46,0.00010801,2]
[352275044,1739023855153,-500.0,0.00010801,2]
[352275045,1739023855164,-871.4,0.00010801,2]
[352275046,1739023855175,-500.0,0.00010801,2]
[352275047,1739023855187,-861.31,0.00010801,2]
[352275048,1739023855199,-172.88500722,0.00010801,2]
[352275049,1739023855238,-671.69499278,0.00010801,2]
[352275050,1739023855250,-208.30500762,0.00010801,2]
[352275051,1739023855263,-291.69499238,0.00010801,2]
[352275052,1739023855275,-500.0,0.00010801,2]
[352275053,1739023855286,-730.52,0.00010801,2]
[352275054,1739023855296,-500.0,0.00010801,2]
[352275055,1739023855308,-500.0,0.00010801,2]
[352275056,1739023855319,-500.0,0.00010801,2]
[352275057,1739023855331,-500.0,0.00010801,2]
[352275058,1739023855342,-150.0,0.0001081,2]
[352275059,1739023855355,-1659.11544568,0.0001087,2]
[352275060,1739023855366,-210.32,0.0001087,2]
[352275061,1739023855376,-2000.0,0.000109,2]
[352275062,1739023855388,-2000.0,0.000109,2]
[352275063,1739023855399,-2000.0,0.000109,2]
[352275064,1739023855411,-2000.0,0.000109,2]
[352275065,1739023855423,-2000.0,0.000109,2]
[352275066,1739023855434,-2000.0,0.000109,2]
[352275067,1739023855446,-2000.0,0.000109,2]
[352275068,1739023855458,-2243.1876,0.000109,2]
[352275069,1739023855469,-1852.0,0.000109,2]
[352275070,1739023855479,-1000.0,0.00010902,2]
[352275071,1739023855491,-763.65,0.00010934,2]
[352275072,1739023855501,-624.15,0.00010934,2]
[352275073,1739023855510,-500.0,0.00010934,2]
[352275074,1739023855520,-967.63,0.00010934,2]
[352275075,1739023855530,-463.90639295,0.00010934,2]
[352275076,1739023855543,-716.90360705,0.00010934,2]
[352275077,1739023855556,-1292.46,0.00010934,2]
[352275078,1739023855568,-500.0,0.00010934,2]
[352275079,1739023855579,-500.0,0.00010934,2]
[352275080,1739023855589,-847.37,0.00010934,2]
[352275081,1739023855599,-637.31,0.00010934,2]
[352275082,1739023855609,-993.73,0.00010934,2]
[352275083,1739023855619,-965.51,0.00010934,2]
[352275084,1739023855629,-1265.51,0.00010934,2]
[352275085,1739023855640,-685.27,0.00010934,2]
[352275086,1739023855652,-1060.04,0.00010934,2]
[352275087,1739023855664,-825.25,0.00010934,2]
[352275088,1739023855675,-500.0,0.00010934,2]
[352275089,1739023855686,-1441.66,0.00010934,2]
[352275090,1739023855696,-1594.71,0.00010934,2]
[352275091,1739023855706,-547.02415393,0.00010934,2]
[352275092,1739023855718,-237.14584607,0.00010934,2]
[352275093,1739023855728,-387.07690592,0.00010934,2]
[352275094,1739023856163,-158.045666,0.000102,2]
[352275095,1739023856173,-1971.46,0.00010249,2]
[352275096,1739023856184,-500.0,0.0001025,2]
[352275097,1739023856194,-1971.46,0.00010386,2]
[352275098,1739023856204,-184.67,0.00010387,2]
[352275099,1739023856215,-1971.46,0.00010523,2]
[352275100,1739023856226,-1382.29309408,0.00010934,2]
[352275101,1739023856237,-706.98,0.00010934,2]
[352275102,1739023856247,-1108.01,0.00010934,2]
[352275103,1739023856257,-1301.9,0.00010934,2]
[352275104,1739023856267,-494.04889183,0.00010934,2]
[352275105,1739023856300,-1086.40110817,0.00010934,2]
[352275106,1739023856311,-1456.02,0.00010934,2]
[352275107,1739023856321,-1211.69,0.00010934,2]
[352275108,1739023856332,-2026.89,0.00010934,2]
[352275109,1739023856343,-1201.71,0.00010934,2]
[352275110,1739023856355,-4134.11,0.00010934,2]
[352275111,1739023856365,-604.54,0.00010934,2]
[352275112,1739023856376,-2947.62,0.00010934,2]
[352275113,1739023856386,-698.33,0.00010934,2]
[352275114,1739023856397,-1062.08,0.00010934,2]
[352275115,1739023856410,-1752.27,0.00010934,2]
[352275116,1739023856421,-1933.44,0.00010934,2]
[352275117,1739023856431,-2042.65,0.00010934,2]
[352275118,1739023856442,-500.0,0.00010934,2]
[352275119,1739023856454,-1884.26,0.00010934,2]
[352275120,1739023856465,-1842.92,0.00010934,2]
[352275121,1739023856476,-897.59,0.00010934,2]
[352275122,1739023856487,-666.04,0.00010934,2]
[352275123,1739023856499,-726.03,0.00010934,2]
[352275124,1739023856510,-1474.19,0.00010934,2]
[352275125,1739023856521,-1030.2,0.00010934,2]
[352275126,1739023856531,-1867.38,0.00010934,2]
[352275127,1739023856542,-500.0,0.00010934,2]
[352275128,1739023856552,-713.51,0.00010934,2]
[352275129,1739023856563,-500.0,0.00010934,2]
[352275130,1739023856574,-1284.03,0.00010934,2]
[352275131,1739023856584,-500.0,0.00010934,2]
[352275132,1739023856595,-500.0,0.00010934,2]
[352275133,1739023856606,-918.65,0.00010934,2]
[352275134,1739023856616,-500.0,0.00010934,2]
[352275135,1739023856627,-500.0,0.00010935,2]
[352275136,1739023856637,-516.51,0.00010935,2]
[352275137,1739023856647,-500.0,0.00010935,2]
[352275138,1739023856659,-500.0,0.00010935,2]
[352275139,1739023856670,-500.0,0.00010935,2]
[352275140,1739023856680,-500.0,0.00010935,2]
[352275141,1739023856690,-500.0,0.00010935,2]
[352275142,1739023856701,-500.0,0.00010935,2]
[352275143,1739023856711,-500.0,0.00010935,2]
[352275144,1739023856722,-733.93,0.00010935,2]
[352275145,1739023856732,-500.0,0.00010935,2]
[352275146,1739023856742,-500.0,0.00010935,2]
[352275147,1739023856752,-817.86,0.00010935,2]
[352275148,1739023856762,-500.0,0.00010935,2]
[352275149,1739023856773,-500.0,0.00010935,2]
[352275150,1739023856783,-500.0,0.00010935,2]
[352275151,1739023856792,-500.0,0.00010935,2]
[352275152,1739023856803,-500.0,0.00010935,2]
[352275153,1739023856813,-561.08,0.00010935,2]
[352275154,1739023856823,-500.0,0.00010935,2]
[352275155,1739023856833,-1265.044401,0.00010935,2]
[352275156,1739023856843,-677.1,0.00010935,2]
[352275157,1739023856853,-500.0,0.00010935,2]
[352275158,1739023856863,-1450.591688,0.00010935,2]
[352275159,1739023856874,-500.0,0.00010935,2]
[352275160,1739023856884,-156.833836,0.00010935,2]
[352275161,1739023856894,-824.34,0.00010935,2]
[352275162,1739023856905,-500.0,0.00010935,2]
[352275163,1739023856915,-500.0,0.00010935,2]
[352275164,1739023856925,-500.0,0.00010935,2]
[352275165,1739023856935,-909.91,0.00010935,2]
[352275166,1739023856945,-500.0,0.00010935,2]
[352275167,1739023856955,-678.71,0.00010935,2]
[352275168,1739023856966,-500.0,0.00010935,2]
[352275169,1739023856976,-500.0,0.00010935,2]
[352275170,1739023856986,-500.0,0.00010935,2]
[352275171,1739023856996,-955.36,0.00010935,2]
[352275172,1739023857006,-500.0,0.00010935,2]
[352275173,1739023857016,-311.82637409,0.00010935,2]
[352275174,1739023857031,-151.301558,0.00010935,2]
[352275175,1739023857041,-695.67,0.00010935,2]
[352275176,1739023857051,-1086.86,0.00010935,2]
[352275177,1739023857062,-668.32,0.00010935,2]
[352275178,1739023857072,-500.0,0.00010935,2]
[352275179,1739023857082,-719.69,0.00010935,2]
[352275180,1739023857092,-324.38755178,0.00010935,2]
[352275181,1739023857105,-719.23,0.00010935,2]
[352275182,1739023857116,-737.61,0.00010935,2]
[352275183,1739023857126,-687.09,0.00010935,2]
[352275184,1739023857136,-150.676147,0.00010935,2]
[352275185,1739023857146,-500.0,0.00010935,2]
[352275186,1739023857157,-500.0,0.00010935,2]
[352275187,1739023857167,-500.0,0.00010935,2]
[352275188,1739023857177,-732.83,0.00010935,2]
[352275189,1739023857188,-500.0,0.00010935,2]
[352275190,1739023857198,-562.43,0.00010935,2]
[352275191,1739023857208,-500.0,0.00010935,2]
[352275192,1739023857219,-35.60120047,0.00010935,2]
[352275193,1739023857270,-1971.46,0.0001066,2]
[352275194,1739023857281,-464.39879953,0.00010935,2]
[352275195,1739023857295,-968.5,0.00010935,2]
[352275196,1739023857305,-500.0,0.00010935,2]
[352275197,1739023857317,-500.0,0.00010935,2]
[352275198,1739023857330,-500.0,0.00010935,2]
[352275199,1739023857341,-128.29576468,0.00010935,2]
[352275200,1739024034540,400.0,0.0002,120]
[352275201,1739024061919,538.0,0.0002,120]
[352275202,1739024078775,400.0,0.0002,120]
[352275203,1739024080480,-300.0,8.698e-05,2]
[352275204,1739024080502,-200.0,8.699e-05,2]
[352275205,1739024082846,-500.0,8.699e-05,2]
[352275206,1739024084835,-500.0,8.699e-05,2]
[352275207,1739024093307,-400.0,8.699e-05,2]
[352275208,1739024094682,-400.0,8.699e-05,2]
[352275211,1739024246836,-501.61279018,0.00011781,7]
[352275212,1739024246939,-152.0,0.00012881,7]
[352275213,1739024246971,-20549.69726166,0.00013,15]
[352275214,1739024246995,-3796.68994816,0.00013,15]
[352275219,1739024804188,23900.0,8.183e-05,2]
[352275220,1739024818997,1852.42,8.183e-05,2]
[352275221,1739024859089,3159.03,8.165e-05,2]
[352275222,1739024881611,500.0,0.0002,120]
[352275223,1739024887944,5000.0,8.21e-05,2]
[352275224,1739024903786,6642.63,8.08e-05,2]
[352275225,1739024904692,-963.3,8.219e-05,2]
[352275226,1739024904713,-3397.26,8.225e-05,2]
[352275227,1739024904733,-150.0,8.698e-05,2]
[352275228,1739024904754,-300.0,8.698e-05,2]
[352275229,1739024904775,-1342.9371,8.699e-05,2]
[352275230,1739024904795,-733.2751,8.699e-05,2]
[352275231,1739024904816,-1397.1313,8.699e-05,2]
[352275232,1739024904837,-1716.0965,8.699e-05,2]
[352275233,1739024906466,6148.0,8.21e-05,2]
[352275234,1739024906623,-294.2474,8.699e-05,2]
[352275235,1739024906646,-9705.7526,8.699e-05,2]
[352275236,1739024907191,-3962.4828,8.699e-05,2]
[352275237,1739024907213,-236.95585813,8.699e-05,2]
[352275238,1739024907235,-500.0,8.733e-05,2]
[352275239,1739024907257,-2383.92,8.747e-05,2]
[352275240,1739024907280,-2383.92,8.749e-05,2]
[352275241,1739024907305,-532.72134187,8.751e-05,2]
[352275242,1739024907863,-1851.19865813,8.751e-05,2]
[352275243,1739024907886,-2383.92,8.753e-05,2]
[352275244,1739024907908,-2383.92,8.756e-05,2]
[352275245,1739024907930,-2383.92,8.758e-05,2]
[352275246,1739024907951,-997.04134187,8.76e-05,2]
[352275247,1739024908525,-1386.87865813,8.76e-05,2]
[352275248,1739024908551,-2383.92,8.763e-05,2]
[352275249,1739024908577,-2383.92,8.765e-05,2]
[352275250,1739024908602,-2383.92,8.767e-05,2]
[352275251,1739024908632,-1461.36134187,8.77e-05,2]
[352275252,1739024908977,-922.55865813,8.77e-05,2]
[352275253,1739024909002,-2383.92,8.772e-05,2]
[352275254,1739024909027,-2383.92,8.774e-05,2]
[352275255,1739024909052,-2383.92,8.776e-05,2]
[352275256,1739024909076,-1925.68134187,8.779e-05,2]
[352275257,1739024909379,-458.23865813,8.779e-05,2]
[352275258,1739024909403,-2383.92,8.781e-05,2]
[352275259,1739024909425,-2383.92,8.783e-05,2]
[352275260,1739024909453,-2383.92,8.786e-05,2]
[352275261,1739024909477,-2383.92,8.788e-05,2]
[352275262,1739024909499,-6.08134187,8.79e-05,2]
[352275263,1739024909734,-2377.83865813,8.79e-05,2]